bitfinex/quotes_BTCUSD_20220226
["timestamp","ask_amount","ask_price","bid_price","bid_amount"]
[1645913144808,0.60485434,39430.0,39420.0,0.26028422]
[1645913145010,0.4333046,39430.0,39423.0,0.00040805]
[1645913145208,0.2307799,39428.0,39423.0,0.00019641]
[1645913146009,0.2307799,39428.0,39420.0,0.26028422]
[1645913149456,0.17340217,39422.0,39421.0,0.37784]
[1645913149657,0.17340217,39422.0,39420.0,0.26028422]
[1645913149856,0.17340217,39422.0,39421.0,0.37824806]
[1645913150056,0.17340217,39422.0,39421.0,0.00040806]
[1645913150258,0.17340217,39422.0,39421.0,0.37824806]
[1645913150457,0.063461,39428.0,39421.0,0.37824806]
[1645913150658,0.12691601,39430.0,39422.0,0.37784]
[1645913150907,0.18167974,39431.0,39420.0,0.26028422]
[1645913151114,0.01013,39431.0,39421.0,0.00040807]
[1645913151507,0.18015361,39427.0,39421.0,0.00040807]
[1645913152105,0.18015361,39427.0,39420.0,0.26028422]
[1645913152305,0.18015361,39427.0,39421.0,0.00040806]
[1645913153304,0.18015361,39427.0,39421.0,0.37784]
[1645913153505,0.18015361,39427.0,39421.0,0.00040806]
[1645913153906,0.18015361,39427.0,39414.0,0.20960999]
[1645913154108,0.18015361,39427.0,39415.0,0.37784]
[1645913156767,0.1739317,39421.0,39415.0,0.37784]
[1645913157357,0.1739317,39421.0,39410.0,0.2385]
[1645913157560,0.1739317,39421.0,39412.0,0.37784]
[1645913157960,0.3,39420.0,39411.0,0.37784]
[1645913158159,0.0504,39419.0,39414.0,0.00040811]
[1645913158407,0.00040127,39418.0,39414.0,0.00040811]
[1645913159217,0.0504,39419.0,39410.0,0.003]
[1645913159408,0.21020555,39415.0,39414.0,0.00040811]
[1645913160010,0.27368928,39415.0,39414.0,0.00040811]
[1645913160210,0.57368928,39415.0,39414.0,0.00040811]
[1645913160408,0.57368928,39415.0,39406.0,0.04]
[1645913160610,0.57368928,39415.0,39413.0,0.00040812]
[1645913160811,0.27368928,39415.0,39413.0,0.00040812]
[1645913161011,0.01013,39414.0,39413.0,0.00040812]
[1645913161613,0.01013,39414.0,39406.0,0.21708675]
[1645913161812,0.374613,39414.0,39412.0,0.00040813]
[1645913162031,0.074613,39414.0,39412.0,0.00040813]
[1645913162466,0.01113,39414.0,39412.0,0.00040813]
[1645913162668,0.001,39414.0,39412.0,0.00040813]
[1645913162869,0.001,39414.0,39406.0,0.04]
[1645913163064,0.301,39414.0,39411.0,0.00040814]
[1645913163264,0.001,39414.0,39411.0,0.00040814]
[1645913163664,0.22033555,39415.0,39411.0,0.00040814]
[1645913163866,0.002,39414.0,39411.0,0.00040814]
[1645913164064,0.002,39414.0,39406.0,0.04]
[1645913164269,0.002,39414.0,39411.0,0.00040814]
[1645913165263,0.002,39414.0,39406.0,0.04]
[1645913165465,0.002,39414.0,39411.0,0.00040814]
[1645913165764,0.003,39414.0,39411.0,0.00040814]
[1645913166402,0.003,39414.0,39406.0,0.04]
[1645913166601,0.303,39414.0,39411.0,0.00040814]
[1645913166805,0.003,39414.0,39411.0,0.00040814]
[1645913167602,0.003,39414.0,39406.0,0.04]
[1645913167803,0.005,39414.0,39411.0,0.00040814]
[1645913168803,0.005,39414.0,39406.0,0.04]
[1645913169004,0.51020555,39415.0,39411.0,0.00040814]
[1645913169208,0.42071295,39415.0,39411.0,0.00040814]
[1645913169656,0.42028295,39415.0,39411.0,0.00040814]
[1645913169856,0.42228295,39415.0,39411.0,0.00040814]
[1645913170057,0.72228295,39415.0,39406.0,0.04]
[1645913170256,0.72228295,39415.0,39411.0,0.00040814]
[1645913170457,0.42228295,39415.0,39411.0,0.00040814]
[1645913170856,0.72228295,39415.0,39411.0,0.00040814]
[1645913171058,0.42028295,39415.0,39411.0,0.00040814]
[1645913171259,0.42028295,39415.0,39407.0,0.21581385]
[1645913171459,0.72028295,39415.0,39411.0,0.00040814]
[1645913171658,0.42028295,39415.0,39411.0,0.00040814]
[1645913172064,0.2123674,39415.0,39411.0,0.00040814]
[1645913172461,0.01013,39417.0,39407.0,0.21581385]
[1645913172462,0.2224974,39417.0,39407.0,0.21581385]
[1645913172660,0.2224974,39417.0,39411.0,0.00040814]
[1645913173066,0.2123674,39414.0,39411.0,0.00040814]
[1645913173267,0.00022344,39410.0,39406.0,0.03100405]
[1645913173509,0.42824,39409.0,39406.0,0.03100405]
[1645913173723,0.0504,39409.0,39406.0,0.03100405]
[1645913174107,0.21134566,39407.0,39406.0,0.03100405]
[1645913174309,0.27484266,39407.0,39406.0,0.03100405]
[1645913175810,0.52194974,39409.0,39406.0,0.03100405]
[1645913176209,0.3504,39409.0,39406.0,0.03100405]
[1645913176809,0.52277032,39409.0,39406.0,0.03100405]
[1645913177465,0.58626271,39409.0,39406.0,0.03141223]
[1645913177663,0.64975671,39409.0,39406.0,0.03141223]
[1645913178459,0.64975671,39409.0,39406.0,0.03100405]
[1645913178659,0.64975671,39409.0,39406.0,0.03141223]
[1645913179464,0.12721044,39410.0,39406.0,0.03141223]
[1645913179664,0.00022344,39410.0,39407.0,0.37784]
[1645913180465,0.00022344,39410.0,39409.0,0.06627]
[1645913181519,0.00022344,39410.0,39409.0,0.14204]
[1645913182318,0.00022344,39410.0,39409.0,0.11667]
[1645913183518,0.00022344,39410.0,39409.0,0.14204]
[1645913184957,0.00022344,39410.0,39409.0,0.11667]
[1645913185454,0.00022344,39410.0,39409.0,0.14204]
[1645913185656,0.00022344,39410.0,39409.0,0.11667]
[1645913186058,0.00022344,39410.0,39409.0,0.19204]
[1645913186260,0.00022344,39410.0,39409.0,1.02657]
[1645913186557,0.00022344,39410.0,39409.0,0.25217]
[1645913187456,0.00022344,39410.0,39409.0,0.2268]
[1645913187655,0.00022344,39410.0,39409.0,0.25217]
[1645913188403,0.00022344,39410.0,39409.0,1.02657]
[1645913188611,0.00022344,39410.0,39409.0,0.25217]
[1645913190511,0.00022344,39410.0,39409.0,0.2268]
[1645913190707,0.00022344,39410.0,39409.0,0.22611469]
[1645913192656,0.00022344,39410.0,39409.0,0.21598469]
[1645913196412,0.52258416,39423.0,39409.0,0.21598469]
[1645913196613,0.22258416,39424.0,39414.0,0.17738879]
[1645913196913,0.00040283,39417.0,39415.0,0.37776]
[1645913197814,0.20315589,39423.0,39415.0,0.37776]
[1645913198015,0.00012086,39419.0,39415.0,0.37776]
[1645913198617,0.23207088,39417.0,39415.0,0.37776]
[1645913200459,0.23207088,39417.0,39413.0,0.066249]
[1645913203404,0.47319883,39421.0,39413.0,0.02659462]
[1645913203602,0.44072609,39421.0,39413.0,0.02659462]
[1645913204606,0.21245416,39420.0,39413.0,0.02659462]
[1645913205205,0.21245416,39420.0,39414.0,0.0004083]
[1645913205406,0.23880278,39421.0,39414.0,0.0004083]
[1645913205407,0.45125694,39421.0,39414.0,0.0004083]
[1645913205908,0.23880278,39421.0,39414.0,0.0004083]
[1645913206108,0.23840193,39421.0,39414.0,0.21064749]
[1645913206308,0.01053086,39421.0,39415.0,0.377766]
[1645913206508,0.01053086,39421.0,39420.0,0.026586]
[1645913206708,0.00040086,39421.0,39420.0,0.026586]
[1645913207367,0.40305754,39426.0,39421.0,0.377703]
[1645913207572,0.00040087,39422.0,39421.0,0.377703]
[1645913208471,0.40305754,39426.0,39421.0,0.377703]
[1645913208667,0.00040087,39423.0,39421.0,0.377703]
[1645913209667,0.40305754,39426.0,39421.0,0.377703]
[1645913209867,0.00040087,39424.0,39421.0,0.377703]
[1645913210902,0.40305754,39426.0,39421.0,0.377703]
[1645913211109,0.00040087,39424.0,39421.0,0.377703]
[1645913212106,0.19060338,39426.0,39421.0,0.377703]
[1645913212307,0.00040087,39424.0,39421.0,0.377703]
[1645913213311,0.21245416,39427.0,39421.0,0.377703]
[1645913213514,0.00040087,39424.0,39422.0,0.0504]
[1645913213816,0.00040087,39424.0,39423.0,0.02658]
[1645913214652,0.00040087,39425.0,39423.0,0.02658]
[1645913215855,0.21245416,39431.0,39426.0,0.20783194]
[1645913216055,0.21245416,39431.0,39427.0,0.377645]
[1645913216357,0.21245416,39431.0,39427.0,0.05055399]
[1645913217154,0.21285503,39431.0,39427.0,0.05055399]
[1645913217355,0.21245416,39430.0,39422.0,0.0504]
[1645913217554,0.21245416,39430.0,39423.0,0.050564]
[1645913218054,0.21245416,39429.0,39423.0,0.050564]
[1645913218406,0.00040087,39428.0,39423.0,0.25733248]
[1645913219407,0.21245416,39429.0,39423.0,0.050564]
[1645913219608,0.00040087,39427.0,39423.0,0.050564]
[1645913220609,0.21245416,39428.0,39423.0,0.26759774]
[1645913220812,0.00040087,39427.0,39423.0,0.050564]
[1645913221409,0.21285503,39427.0,39423.0,0.050564]
[1645913221810,0.21245416,39427.0,39423.0,0.050564]
[1645913222018,0.00040087,39427.0,39423.0,0.050564]
[1645913222457,0.21285503,39427.0,39423.0,0.050564]
[1645913222855,0.21245416,39427.0,39423.0,0.050564]
[1645913223259,0.00040087,39427.0,39423.0,0.050564]
[1645913223458,0.43532568,39427.0,39423.0,0.050564]
[1645913223863,0.43532568,39427.0,39416.0,0.077156]
[1645913223864,0.3,39426.0,39416.0,0.077156]
[1645913224063,0.21245416,39422.0,39419.0,0.077155]
[1645913224264,0.21245416,39421.0,39418.0,0.001]
[1645913224463,0.21245416,39419.0,39418.0,0.001]
[1645913224663,0.39700771,39419.0,39418.0,0.001]
[1645913224863,0.18455355,39419.0,39418.0,0.001]
[1645913225160,0.18455355,39419.0,39414.0,0.00040832]
[1645913225360,0.21158736,39418.0,39412.0,0.077177]
[1645913225560,0.21158736,39418.0,39414.0,0.0004083]
[1645913226404,0.18455355,39419.0,39414.0,0.0004083]
[1645913226405,0.21158736,39417.0,39414.0,0.0004083]
[1645913226606,0.21158736,39417.0,39412.0,0.077177]
[1645913226807,0.21158736,39417.0,39414.0,0.00040829]
[1645913227006,0.21158736,39418.0,39414.0,0.00040829]
[1645913227404,0.21158736,39418.0,39415.0,0.077172]
[1645913228307,0.21158736,39418.0,39414.0,0.0004083]
[1645913228706,0.21158736,39417.0,39414.0,0.0004083]
[1645913228905,0.21158736,39417.0,39410.0,0.21276346]
[1645913229106,0.21158736,39417.0,39414.0,0.00040829]
[1645913229310,0.21158736,39418.0,39414.0,0.00040829]
[1645913229507,0.21158736,39417.0,39414.0,0.00040829]
[1645913229760,0.21158736,39418.0,39416.0,0.23986908]
[1645913233405,0.21158736,39418.0,39416.0,0.09359808]
[1645913234104,0.21158736,39418.0,39414.0,0.0004083]
[1645913234905,0.21158736,39418.0,39412.0,0.18953984]
[1645913235106,0.21158736,39418.0,39414.0,0.00040829]
[1645913236209,0.21158736,39416.0,39414.0,0.077173]
[1645913236408,0.21158736,39417.0,39414.0,0.07758129]
[1645913237458,0.21158736,39417.0,39414.0,0.077173]
[1645913237658,0.21158736,39417.0,39414.0,0.07758129]
[1645913238256,0.21158736,39418.0,39414.0,0.07758129]
[1645913238457,0.21158736,39417.0,39414.0,0.07758129]
[1645913238658,0.21158736,39417.0,39414.0,0.077173]
[1645913238858,0.21158736,39418.0,39414.0,0.07758129]
[1645913239561,0.21158736,39418.0,39414.0,0.00040829]
[1645913239759,0.21158736,39418.0,39412.0,0.18953984]
[1645913239959,0.21158736,39418.0,39414.0,0.00040829]
[1645913240760,0.00040084,39421.0,39414.0,0.00040829]
[1645913240761,0.21158736,39417.0,39414.0,0.00040829]
[1645913241006,0.21158736,39417.0,39412.0,0.18953984]
[1645913241208,0.21158736,39417.0,39416.0,0.077169]
[1645913241409,0.06439497,39415.0,39414.0,0.00040829]
[1645913241608,0.36439497,39415.0,39414.0,0.00040829]
[1645913242211,0.06439497,39415.0,39409.0,0.002]
[1645913242408,0.06439497,39415.0,39413.0,0.0004083]
[1645913242409,0.27288479,39415.0,39413.0,0.0004083]
[1645913243307,0.27288479,39415.0,39406.0,0.03100405]
[1645913243507,0.27288479,39415.0,39412.0,0.00040831]
[1645913243508,0.57288479,39415.0,39412.0,0.00040831]
[1645913243707,0.27288479,39415.0,39412.0,0.00040831]
[1645913244507,0.27288479,39415.0,39407.0,0.002]
[1645913244755,0.27288479,39415.0,39412.0,0.00040831]
[1645913245854,0.27288479,39415.0,39406.0,0.03100405]
[1645913246052,0.27288479,39415.0,39412.0,0.00040831]
[1645913247355,0.06439497,39415.0,39412.0,0.00040831]
[1645913248152,0.06439497,39415.0,39410.0,0.077186]
[1645913248408,0.06439497,39415.0,39412.0,0.00040831]
[1645913249409,0.06439497,39415.0,39407.0,0.077194]
[1645913249610,0.06439497,39415.0,39412.0,0.00038757]
[1645913250511,0.06439497,39415.0,39406.0,0.03100405]
[1645913250714,0.06439497,39415.0,39412.0,0.00038757]
[1645913251716,0.06439497,39415.0,39413.0,0.21037662]
[1645913252566,0.06439497,39415.0,39412.0,0.00038757]
[1645913252963,0.06439497,39415.0,39410.0,0.2009558]
[1645913253163,0.06439497,39415.0,39412.0,0.00038757]
[1645913254164,0.06439497,39415.0,39407.0,0.002]
[1645913254365,0.06439497,39415.0,39412.0,0.00039058]
[1645913255469,0.06439497,39415.0,39409.0,0.18137704]
[1645913255665,0.06439497,39415.0,39412.0,0.00039058]
[1645913256107,0.06439497,39415.0,39413.0,0.077074]
[1645913256904,0.06439497,39415.0,39412.0,0.00039057]
[1645913257906,0.06439497,39415.0,39410.0,0.07708]
[1645913258115,0.42787797,39415.0,39412.0,0.00039012]
[1645913258313,0.63946533,39415.0,39412.0,0.00039012]
[1645913258507,0.21158736,39414.0,39412.0,0.00039012]
[1645913258708,0.3,39413.0,39412.0,0.00039012]
[1645913259108,0.53162306,39413.0,39407.0,0.002]
[1645913259307,0.74321042,39413.0,39411.0,0.00039012]
[1645913259509,0.3,39412.0,39411.0,0.00039012]
[1645913259756,0.44321042,39413.0,39411.0,0.00039012]
[1645913260255,0.001,39412.0,39406.0,0.03300405]
[1645913260456,0.001,39412.0,39410.0,0.00039013]
[1645913260457,0.301,39412.0,39410.0,0.00039013]
[1645913260862,0.51258736,39412.0,39410.0,0.00039013]
[1645913261455,0.51258736,39412.0,39406.0,0.03100405]
[1645913261456,0.21158736,39412.0,39406.0,0.03100405]
[1645913261658,0.51158736,39412.0,39409.0,0.00039021]
[1645913262059,0.3,39412.0,39409.0,0.00039021]
[1645913262257,0.21158736,39412.0,39409.0,0.00039021]
[1645913262458,0.21158736,39411.0,39409.0,0.00039021]
[1645913262659,0.21158736,39411.0,39406.0,0.03100405]
[1645913262857,0.21158736,39411.0,39409.0,0.00039021]
[1645913263508,0.21158736,39411.0,39401.0,0.077101]
[1645913264107,0.21158736,39410.0,39401.0,0.077101]
[1645913264508,0.21158736,39411.0,39403.0,0.077107]
[1645913264710,0.21158736,39410.0,39403.0,0.077106]
[1645913265207,0.0001036,39408.0,39403.0,0.077106]
[1645913266209,0.21158736,39411.0,39403.0,0.077106]
[1645913266410,0.0001036,39407.0,39403.0,0.077106]
[1645913267262,0.0001036,39407.0,39405.0,0.23047694]
[1645913267465,0.21158736,39411.0,39406.0,0.077101]
[1645913267664,0.00034532,39407.0,39405.0,0.23047694]
[1645913267859,0.00034532,39407.0,39403.0,0.07711]
[1645913268659,0.21158736,39411.0,39403.0,0.07711]
[1645913268861,0.00037155,39407.0,39403.0,0.07711]
[1645913269759,0.21158736,39411.0,39403.0,0.07711]
[1645913269962,0.00037155,39407.0,39403.0,0.07711]
[1645913271209,0.00037155,39407.0,39403.0,0.03961]
[1645913272210,0.21158736,39411.0,39403.0,0.03961]
[1645913272506,0.00033997,39407.0,39403.0,0.03961]
[1645913273505,0.21158736,39411.0,39403.0,0.03961]
[1645913273708,0.00033997,39407.0,39403.0,0.03961]
[1645913274307,0.00033997,39407.0,39404.0,0.26308183]
[1645913274513,0.00033997,39407.0,39405.0,0.064975]
[1645913274768,0.06439497,39415.0,39408.0,0.02537]
[1645913275073,0.06439497,39415.0,39411.0,0.039587]
[1645913275265,0.06439497,39415.0,39414.0,0.2520106]
[1645913275564,0.06439497,39415.0,39414.0,0.48298503]
[1645913276168,0.06439497,39415.0,39414.0,0.08998]
[1645913276575,0.06439497,39415.0,39414.0,0.03958]
[1645913276766,0.06439497,39415.0,39409.0,0.002]
[1645913276971,0.06439497,39415.0,39410.0,0.039585]
[1645913278265,0.06422488,39415.0,39410.0,0.039585]
[1645913279307,0.27581224,39415.0,39410.0,0.039585]
[1645913279707,0.00040624,39414.0,39410.0,0.039585]
[1645913280709,0.27581224,39415.0,39410.0,0.039585]
[1645913280908,0.00040624,39414.0,39410.0,0.039585]
[1645913281909,0.06422488,39415.0,39410.0,0.039585]
[1645913282164,0.00040624,39414.0,39410.0,0.039585]
[1645913282956,0.27581224,39415.0,39410.0,0.039585]
[1645913283356,0.00040624,39414.0,39410.0,0.039585]
[1645913284158,0.27581224,39415.0,39410.0,0.039585]
[1645913284557,0.00040624,39414.0,39410.0,0.039585]
[1645913285359,0.27581224,39415.0,39410.0,0.039585]
[1645913285906,0.00040624,39414.0,39410.0,0.039585]
[1645913286708,0.27581224,39415.0,39410.0,0.22055105]
[1645913286911,0.00040624,39414.0,39410.0,0.22055105]
[1645913287607,0.2119936,39414.0,39410.0,0.22055105]
[1645913287807,0.27581224,39415.0,39410.0,0.22055105]
[1645913288107,0.00040624,39414.0,39410.0,0.22055105]
[1645913289106,0.27581224,39415.0,39410.0,0.22055105]
[1645913289407,0.00040624,39414.0,39410.0,0.22055105]
[1645913289868,0.00040624,39414.0,39410.0,0.56659422]
[1645913290065,0.00040624,39414.0,39410.0,0.61659422]
[1645913290266,0.00040624,39414.0,39412.0,0.039586]
[1645913290467,0.06422488,39415.0,39413.0,0.32251097]
[1645913290667,0.06422488,39415.0,39414.0,0.039581]
[1645913293414,0.06422488,39415.0,39413.0,0.03049442]
[1645913297673,0.06422488,39415.0,39408.0,0.26774608]
[1645913297867,0.06422488,39415.0,39408.0,0.26734608]
[1645913298065,0.06422488,39415.0,39408.0,0.053]
[1645913298266,0.06422488,39415.0,39405.0,0.3499]
[1645913298667,0.06422488,39415.0,39407.0,0.1886228]
[1645913299069,0.00038222,39412.0,39405.0,0.3499]
[1645913299868,0.20204051,39413.0,39405.0,0.3499]
[1645913300273,0.00038223,39410.0,39405.0,0.3499]
[1645913300468,0.00038223,39410.0,39405.0,0.2499]
[1645913300913,0.00038223,39410.0,39402.0,0.1183]
[1645913301113,0.3,39412.0,39400.0,0.006]
[1645913301312,0.3,39412.0,39401.0,0.00038231]
[1645913301313,0.00038223,39409.0,39401.0,0.00038231]
[1645913302017,0.00038223,39409.0,39401.0,0.39441944]
[1645913302214,0.41362787,39413.0,39401.0,0.39403713]
[1645913302612,0.41362787,39413.0,39401.0,0.39442008]
[1645913302816,0.00038289,39407.0,39401.0,0.39442008]
[1645913303612,0.3,39412.0,39401.0,0.39403713]
[1645913303916,0.0003829,39406.0,39401.0,0.39442008]
[1645913304114,0.0003829,39406.0,39401.0,0.15954337]
[1645913304764,0.20204051,39413.0,39401.0,0.15916042]
[1645913304960,0.0003829,39405.0,39401.0,0.15954337]
[1645913305961,0.20204051,39413.0,39401.0,0.15916042]
[1645913306162,0.20204051,39413.0,39401.0,0.15954332]
[1645913306163,0.00038286,39405.0,39401.0,0.15954332]
[1645913307163,0.20204051,39413.0,39401.0,0.15916042]
[1645913307363,0.20204051,39413.0,39401.0,0.15954332]
[1645913307364,0.00038286,39405.0,39401.0,0.15954332]
[1645913308404,0.21218051,39413.0,39401.0,0.15916042]
[1645913308606,0.00038286,39405.0,39401.0,0.15954332]
[1645913309706,0.00038286,39405.0,39401.0,0.15954333]
[1645913309707,0.00038287,39405.0,39401.0,0.15954333]
[1645913310707,0.41362787,39413.0,39401.0,0.15916042]
[1645913310906,0.00038287,39405.0,39401.0,0.15954333]
[1645913311909,0.3,39412.0,39401.0,0.15916042]
[1645913311910,0.51158736,39412.0,39401.0,0.15916042]
[1645913312163,0.00038287,39405.0,39401.0,0.15954333]
[1645913313165,0.21158736,39412.0,39401.0,0.15916042]
[1645913313362,0.00038287,39405.0,39401.0,0.15954333]
[1645913314164,0.41362787,39413.0,39402.0,0.3]
[1645913314866,0.20204051,39413.0,39402.0,0.3]
[1645913317015,0.00040528,39409.0,39402.0,0.30040854]
[1645913318017,0.22172736,39414.0,39405.0,0.22530193]
[1645913318217,0.00038111,39407.0,39406.0,0.3]
[1645913318615,0.00038111,39407.0,39406.0,0.50991618]
[1645913319018,1.11e-06,39407.0,39406.0,0.47577]
[1645913319220,0.06422488,39415.0,39406.0,1.50007]
[1645913319417,0.06422488,39415.0,39407.0,0.088823]
[1645913319666,0.0003811,39408.0,39407.0,0.088823]
[1645913319869,0.0003811,39408.0,39407.0,0.65356908]
[1645913320068,0.0003811,39408.0,39407.0,1.62328105]
[1645913320466,0.06422488,39415.0,39413.0,0.19726618]
[1645913320666,0.06422488,39415.0,39414.0,0.0504]
[1645913321268,0.06422488,39415.0,39414.0,0.3504]
[1645913321468,0.06422488,39415.0,39414.0,0.55505699]
[1645913322069,0.00012158,39416.0,39415.0,0.17577512]
[1645913322370,0.00012158,39416.0,39415.0,0.52617512]
[1645913322770,0.21158736,39422.0,39415.0,0.52617512]
[1645913322969,0.00040433,39417.0,39415.0,0.3504]
[1645913323414,0.00040433,39417.0,39413.0,0.19726618]
[1645913323620,0.00040433,39417.0,39416.0,0.0504]
[1645913324016,0.21158736,39423.0,39416.0,0.0504]
[1645913324217,0.00040433,39418.0,39416.0,0.0504]
[1645913325117,0.21158736,39423.0,39416.0,0.0504]
[1645913325318,0.00040433,39419.0,39416.0,0.0504]
[1645913325719,0.21108599,39423.0,39416.0,0.2726297]
[1645913326122,0.21108599,39423.0,39416.0,0.0504]
[1645913326519,0.43692097,39424.0,39416.0,0.0504]
[1645913326919,0.26530571,39424.0,39416.0,0.0504]
[1645913327366,0.52519401,39425.0,39416.0,0.0504]
[1645913327367,0.79049972,39425.0,39416.0,0.0504]
[1645913327865,0.61888446,39425.0,39416.0,0.0504]
[1645913328965,0.26530571,39424.0,39416.0,0.0504]
[1645913329868,0.61888446,39425.0,39416.0,0.0504]
[1645913330166,0.00040332,39422.0,39416.0,0.0504]
[1645913331213,0.61888446,39425.0,39416.0,0.0504]
[1645913331414,0.00040332,39421.0,39416.0,0.0504]
[1645913332411,0.18867261,39419.0,39416.0,0.0504]
[1645913334014,0.18867261,39419.0,39412.0,0.1]
[1645913334213,0.18867261,39419.0,39412.0,0.1504]
[1645913335464,0.18867261,39419.0,39412.0,0.1]
[1645913335663,0.18867261,39419.0,39412.0,0.05]
[1645913336269,0.18867261,39419.0,39410.0,0.1]
[1645913336566,0.18867261,39419.0,39411.0,0.20050718]
[1645913336763,0.18867261,39419.0,39411.0,0.30050718]
[1645913337564,0.18867261,39419.0,39409.0,0.16053]
[1645913337864,0.18867261,39419.0,39410.0,0.05]
[1645913338510,0.18867261,39419.0,39411.0,0.22330331]
[1645913338917,0.18867261,39419.0,39410.0,0.05]
[1645913339312,0.18867261,39419.0,39409.0,0.01013]
[1645913340115,0.18867261,39419.0,39410.0,0.0504]
[1645913340515,0.18867261,39419.0,39410.0,0.1004]
[1645913341314,0.18867261,39419.0,39410.0,0.0954]
[1645913341716,0.18867261,39419.0,39413.0,0.16868236]
[1645913342165,0.18867261,39419.0,39410.0,0.0954]
[1645913343168,0.18867261,39419.0,39412.0,0.21154684]
[1645913343568,0.18867261,39419.0,39412.0,0.31154684]
[1645913345772,0.21225048,39421.0,39412.0,0.31154684]
[1645913346037,0.1186,39425.0,39420.0,0.1]
[1645913346038,1.0098,39425.0,39420.0,0.1]
[1645913346350,0.54313285,39435.0,39421.0,1.10890729]
[1645913346351,0.21159597,39428.0,39421.0,1.10890729]
[1645913346533,0.21159597,39431.0,39422.0,0.19128988]
[1645913346738,0.21159597,39432.0,39425.0,0.21727551]
[1645913346932,0.1147,39435.0,39426.0,0.81132]
[1645913346933,0.21159597,39433.0,39426.0,0.81132]
[1645913347135,0.21159597,39435.0,39426.0,1.16132]
[1645913347533,0.18127325,39436.0,39426.0,1.16132]
[1645913347534,0.35483341,39436.0,39426.0,0.81132]
[1645913347735,0.28846099,39435.0,39426.0,0.81132]
[1645913347935,0.26449496,39434.0,39426.0,0.81132]
[1645913348234,0.26449496,39433.0,39426.0,0.76092]
[1645913348431,0.2078177,39429.0,39426.0,0.76092]
[1645913348632,0.23581619,39428.0,39426.0,0.76092]
[1645913350262,0.23258539,39428.0,39426.0,0.76092]
[1645913353913,0.23258539,39428.0,39426.0,0.68482801]
[1645913354114,0.18512094,39427.0,39426.0,0.68482801]
[1645913354715,0.23258539,39428.0,39426.0,0.68482801]
[1645913356316,0.41863535,39428.0,39426.0,0.68482801]
[1645913364419,0.08,39427.0,39426.0,0.68482801]
[1645913373570,0.29774544,39427.0,39426.0,0.68437751]
[1645913373769,0.29774544,39427.0,39426.0,0.61593976]
[1645913374469,0.08,39427.0,39426.0,0.61593976]
[1645913385718,0.08,39427.0,39426.0,0.61093976]
[1645913389371,0.08,39427.0,39426.0,0.91093976]
[1645913389972,0.08,39427.0,39426.0,1.12991277]
[1645913390671,0.00034009,39428.0,39426.0,1.12991277]
[1645913390922,0.08,39430.0,39428.0,0.00061498]
[1645913391518,0.08,39433.0,39428.0,0.00061498]
[1645913391718,0.08,39429.0,39428.0,0.00061498]
[1645913392919,0.08,39429.0,39428.0,0.00016518]
[1645913394763,0.08,39433.0,39428.0,0.00016518]
[1645913395165,0.00040146,39430.0,39428.0,0.00016518]
[1645913396067,0.25090349,39429.0,39428.0,0.00016518]
[1645913396270,0.08,39429.0,39428.0,0.00016518]
[1645913396668,0.08,39429.0,39426.0,0.61072816]
[1645913396867,0.08,39429.0,39426.0,0.91072816]
[1645913397080,0.00040146,39431.0,39426.0,0.91072816]
[1645913397267,0.25874358,39433.0,39426.0,0.91072816]
[1645913397468,0.00040146,39430.0,39426.0,0.91072816]
[1645913398518,0.25874358,39433.0,39426.0,0.91072816]
[1645913398714,0.00040146,39430.0,39426.0,0.91072816]
[1645913399614,0.25874358,39433.0,39426.0,0.91072816]
[1645913400014,0.00040146,39430.0,39426.0,0.91072816]
[1645913400216,0.00040146,39430.0,39426.0,0.61072816]
[1645913400820,0.25874358,39433.0,39426.0,0.61072816]
[1645913401217,0.00040146,39430.0,39426.0,0.61072816]
[1645913401421,0.00040146,39430.0,39427.0,0.18562966]
[1645913401617,0.00040146,39430.0,39426.0,0.61072816]
[1645913402019,0.25874358,39433.0,39426.0,0.61072816]
[1645913402267,0.00040146,39430.0,39426.0,0.61072816]
[1645913403269,0.25874358,39433.0,39426.0,0.61072816]
[1645913403468,0.00040146,39430.0,39426.0,0.61072816]
[1645913403868,0.00040146,39430.0,39427.0,0.16994206]
[1645913404268,0.00040146,39430.0,39427.0,0.46994206]
[1645913404469,0.25874358,39433.0,39427.0,0.16994206]
[1645913404668,0.00040146,39430.0,39427.0,0.16994206]
[1645913404871,0.00023145,39430.0,39427.0,0.16994206]
[1645913405470,0.00023145,39430.0,39426.0,0.61072816]
[1645913405673,0.25874358,39433.0,39427.0,0.3]
[1645913405917,0.25874358,39433.0,39426.0,0.61072816]
[1645913406322,0.25874358,39433.0,39427.0,0.3]
[1645913406517,0.25874358,39433.0,39426.0,0.61072816]
[1645913406921,0.08,39431.0,39426.0,0.61072816]
[1645913407918,0.08040103,39432.0,39426.0,0.61072816]
[1645913408121,0.08,39432.0,39426.0,0.61072816]
[1645913408321,0.080382,39432.0,39426.0,0.61072816]
[1645913409323,0.08,39430.0,39426.0,0.61072816]
[1645913410367,0.05378696,39430.0,39426.0,0.61072816]
[1645913410766,0.05378696,39430.0,39426.0,0.79353156]
[1645913410967,0.05378696,39430.0,39426.0,0.61072816]
[1645913411975,0.05378696,39430.0,39426.0,0.60572816]
[1645913412168,0.04878696,39430.0,39426.0,0.60572816]
[1645913415428,0.04878696,39430.0,39427.0,0.3]
[1645913415628,0.04878696,39430.0,39426.0,0.60572816]
[1645913417476,0.04878696,39430.0,39427.0,0.3]
[1645913417874,0.04878696,39430.0,39426.0,0.77230703]
[1645913418074,0.04878696,39430.0,39426.0,0.60572816]
[1645913418875,0.04878696,39430.0,39427.0,0.23941354]
[1645913419077,0.04878696,39430.0,39427.0,0.23938543]
[1645913419474,0.04878696,39430.0,39428.0,0.22189921]
[1645913420675,0.00038374,39432.0,39428.0,0.22189921]
[1645913421214,1.0098,39434.0,39428.0,0.22189921]
[1645913421413,0.00038374,39432.0,39428.0,0.22189921]
[1645913422417,1.00018374,39434.0,39428.0,0.22189921]
[1645913422625,1.0098,39439.0,39434.0,0.5717294]
[1645913422823,0.04,39440.0,39434.0,0.5717294]
[1645913422824,0.04,39440.0,39435.0,0.3504]
[1645913423017,0.04,39440.0,39435.0,0.4504]
[1645913423416,0.04,39440.0,39436.0,0.02537]
[1645913423615,0.04,39440.0,39439.0,0.22155146]
[1645913424666,0.04,39440.0,39437.0,0.0504]
[1645913425068,0.04,39440.0,39438.0,0.3]
[1645913425667,0.04,39440.0,39439.0,0.19406115]
[1645913425865,0.04,39440.0,39439.0,0.3]
[1645913426068,0.04,39440.0,39437.0,0.0504]
[1645913427067,0.18984957,39439.0,39437.0,0.0504]